fUST/lending_fUST_20251216
["ID","MTS","AMOUNT","RATE_DAILY","PERIOD"]
[398585779,1765857070778,-3387.17,0.0001178,2]
[398585780,1765857070787,-838.05,0.0001178,2]
[398585781,1765857070796,-500.0,0.0001178,2]
[398585782,1765857070805,-500.0,0.0001178,2]
[398585783,1765857070814,-717.42,0.0001178,2]
[398585784,1765857070823,-500.0,0.0001178,2]
[398585785,1765857070833,-11122.08,0.0001178,2]
[398585786,1765857070842,-1435.24,0.0001178,2]
[398585787,1765857070852,-233.91831946,0.0001178,2]
[398585788,1765857070861,-500.0,0.0001178,2]
[398585789,1765857070870,-645.68,0.0001178,2]
[398585790,1765857070880,-22080.53,0.0001178,2]
[398585791,1765857070889,-3719.53,0.0001178,2]
[398585792,1765857070899,-500.0,0.0001178,2]
[398585793,1765857070908,-835.99,0.0001178,2]
[398585794,1765857070917,-1808.12,0.0001178,2]
[398585795,1765857070926,-500.0,0.0001178,2]
[398585796,1765857070935,-500.0,0.0001178,2]
[398585797,1765857070944,-500.0,0.0001178,2]
[398585798,1765857070953,-8246.11,0.0001178,2]
[398585799,1765857070963,-1665.52,0.0001178,2]
[398585800,1765857070972,-500.0,0.0001178,2]
[398585801,1765857070981,-500.0,0.0001178,2]
[398585802,1765857070990,-500.0,0.0001178,2]
[398585803,1765857070999,-505.05,0.0001178,2]
[398585804,1765857071008,-500.0,0.0001178,2]
[398585805,1765857071018,-5019.38,0.0001178,2]
[398585806,1765857071027,-688.63,0.0001178,2]
[398585807,1765857071037,-980.38,0.0001178,2]
[398585808,1765857071046,-2863.98,0.0001178,2]
[398585809,1765857071056,-2333.27,0.0001178,2]
[398585810,1765857071065,-500.0,0.0001178,2]
[398585811,1765857071074,-500.0,0.0001178,2]
[398585812,1765857071083,-500.0,0.0001178,2]
[398585813,1765857071092,-884.98,0.0001178,2]
[398585814,1765857071102,-2011.13,0.0001178,2]
[398585815,1765857071111,-500.0,0.0001178,2]
[398585816,1765857071121,-561.14,0.0001178,2]
[398585817,1765857071134,-1161.7,0.0001178,2]
[398585818,1765857071143,-5555.9,0.0001178,2]
[398585819,1765857071152,-500.0,0.0001178,2]
[398585820,1765857071161,-1243.71,0.0001178,2]
[398585821,1765857071170,-35354.14,0.0001178,2]
[398585822,1765857071179,-3963.15,0.0001178,2]
[398585823,1765857071188,-9588.87,0.0001178,2]
[398585824,1765857071198,-500.0,0.0001178,2]
[398585825,1765857071208,-1419.14,0.0001178,2]
[398585826,1765857071217,-500.0,0.0001178,2]
[398585827,1765857071226,-1172.55,0.0001178,2]
[398585828,1765857071235,-500.0,0.0001178,2]
[398585829,1765857071245,-500.0,0.0001178,2]
[398585830,1765857071254,-2089.03,0.0001178,2]
[398585831,1765857071265,-500.0,0.0001178,2]
[398585832,1765857071274,-2257.39,0.0001178,2]
[398585833,1765857071284,-1097.79,0.0001178,2]
[398585834,1765857071294,-1991.38,0.0001178,2]
[398585835,1765857071303,-841.22,0.0001178,2]
[398585836,1765857071313,-500.0,0.0001178,2]
[398585837,1765857071324,-500.0,0.0001178,2]
[398585838,1765857071333,-500.0,0.0001178,2]
[398585839,1765857071341,-800.38,0.0001178,2]
[398585840,1765857071350,-500.0,0.0001178,2]
[398585841,1765857071359,-1431.03,0.0001178,2]
[398585842,1765857071368,-500.0,0.0001178,2]
[398585843,1765857071377,-8351.41,0.0001178,2]
[398585844,1765857071386,-500.0,0.0001178,2]
[398585845,1765857071395,-1423.76,0.0001178,2]
[398585846,1765857071404,-896.79,0.0001178,2]
[398585847,1765857071413,-500.0,0.0001178,2]
[398585848,1765857071422,-1140.27,0.0001178,2]
[398585849,1765857071431,-4075.24,0.0001178,2]
[398585850,1765857071440,-500.0,0.0001178,2]
[398585851,1765857071449,-914.19,0.0001178,2]
[398585852,1765857071458,-500.0,0.0001178,2]
[398585853,1765857071466,-500.0,0.0001178,2]
[398585854,1765857071475,-3247.84,0.0001178,2]
[398585855,1765857071485,-1445.43,0.0001178,2]
[398585856,1765857071494,-500.0,0.0001178,2]
[398585857,1765857071503,-500.0,0.0001178,2]
[398585858,1765857071513,-940.6,0.0001178,2]
[398585859,1765857071521,-500.0,0.0001178,2]
[398585860,1765857071531,-500.0,0.0001178,2]
[398585861,1765857071540,-1956.75,0.0001178,2]
[398585862,1765857071550,-500.0,0.0001178,2]
[398585863,1765857071561,-500.0,0.0001178,2]
[398585864,1765857071570,-1069.42,0.0001178,2]
[398585865,1765857071579,-2026.56,0.0001178,2]
[398585866,1765857071588,-1628.96,0.0001178,2]
[398585867,1765857071598,-1842.29,0.0001178,2]
[398585868,1765857071607,-1954.46,0.0001178,2]
[398585869,1765857071615,-500.0,0.0001178,2]
[398585870,1765857071625,-500.0,0.0001178,2]
[398585871,1765857071635,-500.0,0.0001178,2]
[398585872,1765857071644,-1249.58,0.0001178,2]
[398585873,1765857071654,-5203.28,0.0001178,2]
[398585874,1765857071663,-2367.41,0.0001178,2]
[398585875,1765857071672,-3863.02,0.0001178,2]
[398585876,1765857071682,-500.0,0.0001178,2]
[398585877,1765857071691,-2306.5,0.0001178,2]
[398585878,1765857071700,-5137.41,0.0001178,2]
[398585879,1765857071710,-500.0,0.0001178,2]
[398585880,1765857071719,-500.0,0.0001178,2]
[398585881,1765857071728,-674.15,0.0001178,2]
[398585882,1765857071737,-500.0,0.0001178,2]
[398585883,1765857071746,-560.29,0.0001178,2]
[398585884,1765857071755,-500.0,0.0001178,2]
[398585885,1765857071766,-2457.45,0.0001178,2]
[398585886,1765857071775,-1620.3,0.0001178,2]
[398585887,1765857071784,-935.88,0.0001178,2]
[398585888,1765857071793,-2175.69,0.0001178,2]
[398585889,1765857071802,-500.0,0.0001178,2]
[398585890,1765857071811,-500.0,0.0001178,2]
[398585891,1765857071820,-831.4,0.0001178,2]
[398585892,1765857071830,-500.0,0.0001178,2]
[398585893,1765857071838,-537.44,0.0001178,2]
[398585894,1765857071848,-500.0,0.0001178,2]
[398585895,1765857071857,-500.0,0.0001178,2]
[398585896,1765857071866,-500.0,0.0001178,2]
[398585897,1765857071875,-500.0,0.0001178,2]
[398585898,1765857071885,-500.0,0.0001178,2]
[398585899,1765857071894,-1150.49,0.0001178,2]
[398585900,1765857071903,-1109.49,0.0001178,2]
[398585901,1765857071913,-643.61,0.0001178,2]
[398585902,1765857071922,-1862.16509977,0.00011816,2]
[398585903,1765857071931,-437.22731407,0.00011852,2]
[398585904,1765857071940,-1862.16509977,0.00011914,2]
[398585905,1765857071949,-182.15593566,0.00011943,3]
[398585906,1765857071958,-161.0,0.00012,2]
[398585907,1765857071967,-200.0,0.00012,2]
[398585908,1765857071978,-160.0,0.00012,2]
[398585909,1765857071987,-152.08,0.00012,2]
[398585910,1765857071996,-1862.16509977,0.00012013,2]
[398585911,1765857072005,-617.40005154,0.00012047,2]
[398585912,1765857072015,-500.0,0.00012054,2]
[398585913,1765857072024,-3839.6,0.00012054,2]
[398585914,1765857072033,-500.0,0.00012054,2]
[398585915,1765857072042,-500.0,0.00012054,2]
[398585916,1765857072051,-167.74746555,0.00012054,2]
[398585917,1765857072060,-212.22109053,0.00012054,2]
[398585918,1765857072069,-500.0,0.00012054,2]
[398585919,1765857072078,-500.0,0.00012054,2]
[398585920,1765857072087,-500.0,0.00012054,2]
[398585921,1765857072096,-500.0,0.00012054,2]
[398585922,1765857072105,-500.0,0.00012054,2]
[398585923,1765857072114,-500.0,0.00012054,2]
[398585924,1765857072123,-500.0,0.00012054,2]
[398585925,1765857072137,-500.0,0.00012054,2]
[398585926,1765857072147,-500.0,0.00012054,2]
[398585927,1765857072156,-500.0,0.00012054,2]
[398585928,1765857072165,-500.0,0.00012054,2]
[398585929,1765857072175,-500.0,0.00012054,2]
[398585930,1765857072184,-500.0,0.00012054,2]
[398585931,1765857072194,-500.0,0.00012054,2]
[398585932,1765857072203,-500.0,0.00012054,2]
[398585933,1765857072216,-500.0,0.00012054,2]
[398585934,1765857072225,-609.81,0.00012054,2]
[398585935,1765857072235,-600.92,0.00012054,2]
[398585936,1765857072244,-500.26,0.00012054,2]
[398585937,1765857072253,-500.0,0.00012054,2]
[398585938,1765857072262,-500.0,0.00012054,2]
[398585939,1765857072271,-635.26,0.00012054,2]
[398585940,1765857072280,-500.0,0.00012054,2]
[398585941,1765857072289,-2131.63,0.00012054,2]
[398585942,1765857072299,-500.0,0.00012054,2]
[398585943,1765857072307,-1239.05,0.00012054,2]
[398585944,1765857072316,-503.51498185,0.00012054,2]
[398585945,1765857072326,-500.0,0.00012054,2]
[398585946,1765857072335,-832.5,0.00012054,2]
[398585947,1765857072344,-481.55912858,0.00012054,2]
[398585948,1765857072354,-500.0,0.00012054,2]
[398585949,1765857072363,-500.0,0.00012054,2]
[398585950,1765857072372,-500.0,0.00012054,2]
[398585951,1765857072381,-500.0,0.00012054,2]
[398585952,1765857072390,-1281.42,0.00012054,2]
[398585953,1765857072399,-706.65,0.00012054,2]
[398585954,1765857072411,-500.0,0.00012054,2]
[398585955,1765857072566,-500.0,0.00012054,2]
[398585956,1765857072576,-500.0,0.00012054,2]
[398585957,1765857072585,-500.0,0.00012054,2]
[398585958,1765857072594,-970.13,0.00012054,2]
[398585959,1765857072604,-500.0,0.00012054,2]
[398585960,1765857072613,-500.0,0.00012054,2]
[398585961,1765857072622,-905.09,0.00012054,2]
[398585962,1765857072631,-500.0,0.00012054,2]
[398585963,1765857072641,-500.0,0.00012054,2]
[398585964,1765857072650,-500.0,0.00012054,2]
[398585965,1765857072660,-500.0,0.00012054,2]
[398585966,1765857072670,-590.83998691,0.00012054,2]
[398585967,1765857072679,-1438.77,0.00012054,2]
[398585968,1765857072687,-2194.500583,0.00012054,2]
[398585969,1765857072696,-500.0,0.00012054,2]
[398585970,1765857072705,-500.0,0.00012054,2]
[398585971,1765857072714,-500.0,0.00012054,2]
[398585972,1765857072723,-867.63,0.00012054,2]
[398585973,1765857072732,-500.81,0.00012054,2]
[398585974,1765857072741,-922.31,0.00012054,2]
[398585975,1765857072750,-500.0,0.00012054,2]
[398585976,1765857072759,-500.0,0.00012054,2]
[398585977,1765857072769,-808.83,0.00012054,2]
[398585978,1765857072778,-500.0,0.00012054,2]
[398585979,1765857072787,-772.63,0.00012054,2]
[398585980,1765857072796,-265.47704142,0.00012054,2]
[398585981,1765857072806,-500.0,0.00012054,2]
[398585982,1765857072815,-500.0,0.00012054,2]
[398585983,1765857072824,-500.0,0.00012054,2]
[398585984,1765857072834,-724.68,0.00012054,2]
[398585985,1765857072843,-728.64,0.00012054,2]
[398585986,1765857072853,-1000.0,0.00012054,2]
[398585987,1765857072862,-500.0,0.00012054,2]
[398585988,1765857072871,-788.39,0.00012054,2]
[398585989,1765857072880,-713.19,0.00012054,2]
[398585990,1765857072889,-711.19,0.00012054,2]
[398585991,1765857072898,-500.0,0.00012054,2]
[398585992,1765857072907,-1903.91,0.00012054,2]
[398585993,1765857072916,-500.0,0.00012054,2]
[398585994,1765857072926,-500.0,0.00012054,2]
[398585995,1765857072935,-1163.59,0.00012054,2]
[398585996,1765857072944,-541.86,0.00012054,2]
[398585997,1765857072953,-873.56,0.00012054,2]
[398585998,1765857072962,-500.0,0.00012054,2]
[398585999,1765857072971,-500.0,0.00012054,2]
[398586000,1765857072979,-500.0,0.00012054,2]
[398586001,1765857072988,-500.0,0.00012054,2]
[398586002,1765857072999,-500.0,0.00012054,2]
[398586003,1765857073009,-500.0,0.00012054,2]
[398586004,1765857073019,-623.95,0.00012054,2]
[398586005,1765857073028,-500.0,0.00012054,2]
[398586006,1765857073038,-500.0,0.00012054,2]
[398586007,1765857073047,-500.0,0.00012054,2]
[398586008,1765857073058,-500.0,0.00012054,2]
[398586009,1765857073068,-939.88,0.00012054,2]
[398586010,1765857073077,-500.0,0.00012054,2]
[398586011,1765857073087,-314.29091277,0.00012054,2]
[398586012,1765857073095,-514.0,0.00012054,2]
[398586013,1765857073105,-500.0,0.00012054,2]
[398586014,1765857073114,-500.0,0.00012054,2]
[398586015,1765857073123,-500.0,0.00012054,2]
[398586016,1765857073135,-500.0,0.00012054,2]
[398586017,1765857073145,-500.0,0.00012054,2]
[398586018,1765857073154,-1404.96,0.00012054,2]
[398586019,1765857073163,-2624.19,0.00012054,2]
[398586020,1765857073173,-1165.8,0.00012054,2]
[398586021,1765857073182,-782.31,0.00012054,2]
[398586022,1765857073191,-644.83416497,0.00012054,2]
[398586023,1765857073200,-500.0,0.00012054,2]
[398586024,1765857073212,-500.0,0.00012054,2]
[398586025,1765857073221,-500.0,0.00012054,2]
[398586026,1765857073230,-484.73107462,0.00012054,2]
[398586027,1765857073240,-500.0,0.00012054,2]
[398586028,1765857073249,-500.0,0.00012054,2]
[398586029,1765857073259,-500.0,0.00012054,2]
[398586030,1765857073268,-500.0,0.00012054,2]
[398586031,1765857073277,-500.0,0.00012054,2]
[398586032,1765857073287,-500.0,0.00012054,2]
[398586033,1765857073295,-500.0,0.00012054,2]
[398586034,1765857073305,-189.55630438,0.00012054,2]
[398586035,1765857073314,-2047.92,0.00012054,2]
[398586036,1765857073324,-500.0,0.00012054,2]
[398586037,1765857073333,-1419.58,0.00012054,2]
[398586038,1765857073343,-500.0,0.00012054,2]
[398586039,1765857073351,-610.62720422,0.00012054,2]
[398586040,1765857073361,-2858.67,0.00012054,2]
[398586041,1765857073370,-915.74,0.00012054,2]
[398586042,1765857073379,-500.0,0.00012054,2]
[398586043,1765857073388,-561.34,0.00012054,2]
[398586044,1765857073398,-862.14,0.00012054,2]
[398586045,1765857073408,-500.0,0.00012054,2]
[398586046,1765857073417,-728.64,0.00012054,2]
[398586047,1765857073427,-500.0,0.00012054,2]
[398586048,1765857073437,-1196.22,0.00012054,2]
[398586049,1765857073446,-500.0,0.00012054,2]
[398586050,1765857073455,-764.95,0.00012054,2]
[398586051,1765857073465,-504.24230309,0.00012054,2]
[398586052,1765857073475,-1723.48,0.00012054,2]
[398586053,1765857073484,-500.0,0.00012054,2]
[398586054,1765857073494,-795.49,0.00012054,2]
[398586055,1765857073504,-500.0,0.00012054,2]
[398586056,1765857073514,-579.03,0.00012054,2]
[398586057,1765857073523,-527.94,0.00012054,2]
[398586058,1765857073534,-500.0,0.00012054,2]
[398586059,1765857073544,-613.42,0.00012054,2]
[398586060,1765857073553,-852.9,0.00012054,2]
[398586061,1765857073564,-1741.83,0.00012054,2]
[398586062,1765857073573,-500.0,0.00012054,2]
[398586063,1765857073583,-500.0,0.00012054,2]
[398586064,1765857073592,-579.96,0.00012054,2]
[398586065,1765857073602,-500.0,0.00012054,2]
[398586066,1765857073612,-500.0,0.00012054,2]
[398586067,1765857073623,-500.0,0.00012054,2]
[398586068,1765857073632,-500.0,0.00012054,2]
[398586069,1765857073644,-882.7,0.00012054,2]
[398586070,1765857073653,-500.0,0.00012054,2]
[398586071,1765857073662,-909.29,0.00012054,2]
[398586072,1765857073671,-500.0,0.00012054,2]
[398586073,1765857073679,-500.0,0.00012054,2]
[398586074,1765857073688,-500.0,0.00012054,2]
[398586075,1765857073698,-500.0,0.00012054,2]
[398586076,1765857073708,-500.0,0.00012054,2]
[398586077,1765857073718,-500.0,0.00012054,2]
[398586078,1765857073728,-500.0,0.00012054,2]
[398586079,1765857073737,-500.0,0.00012054,2]
[398586080,1765857073747,-1389.03,0.00012054,2]
[398586081,1765857073756,-652.64,0.00012054,2]
[398586082,1765857073766,-500.0,0.00012054,2]
[398586083,1765857073775,-500.0,0.00012054,2]
[398586084,1765857073787,-312.49562961,0.00012054,2]
[398586085,1765857073796,-863.06,0.00012054,2]
[398586086,1765857073806,-946.95,0.00012054,2]
[398586087,1765857073815,-500.0,0.00012054,2]
[398586088,1765857073825,-500.0,0.00012054,2]
[398586089,1765857073835,-752.63,0.00012054,2]
[398586090,1765857073844,-500.0,0.00012054,2]
[398586091,1765857073854,-500.0,0.00012054,2]
[398586092,1765857073863,-500.0,0.00012054,2]
[398586093,1765857073873,-1824.47,0.00012054,2]
[398586094,1765857073882,-631.43,0.00012054,2]
[398586095,1765857073891,-548.39,0.00012054,2]
[398586096,1765857073900,-500.0,0.00012054,2]
[398586097,1765857073909,-5069.0,0.00012054,2]
[398586098,1765857073918,-869.38,0.00012054,2]
[398586099,1765857073927,-500.0,0.00012054,2]
[398586100,1765857073936,-1418.86,0.00012054,2]
[398586101,1765857073946,-500.0,0.00012054,2]
[398586102,1765857073955,-500.0,0.00012054,2]
[398586103,1765857073964,-500.0,0.00012054,2]
[398586104,1765857073974,-1398.62,0.00012054,2]
[398586105,1765857073983,-2490.08,0.00012054,2]
[398586106,1765857073991,-500.0,0.00012054,2]
[398586107,1765857074000,-500.0,0.00012054,2]
[398586108,1765857074008,-886.06,0.00012054,2]
[398586109,1765857074017,-500.0,0.00012054,2]
[398586110,1765857074026,-555.44,0.00012054,2]
[398586111,1765857074035,-500.0,0.00012054,2]
[398586112,1765857074043,-500.0,0.00012054,2]
[398586113,1765857074052,-886.48,0.00012054,2]
[398586114,1765857074061,-528.18,0.00012054,2]
[398586115,1765857074069,-1144.03,0.00012054,2]
[398586116,1765857074078,-1839.21,0.00012054,2]
[398586117,1765857074087,-500.0,0.00012054,2]
[398586118,1765857074095,-500.0,0.00012054,2]
[398586119,1765857074104,-760.81,0.00012054,2]
[398586120,1765857074113,-484.60137883,0.00012054,2]
[398586121,1765857074122,-500.0,0.00012054,2]
[398586122,1765857074133,-578.54,0.00012054,2]
[398586123,1765857074142,-500.0,0.00012054,2]
[398586124,1765857074150,-525.22,0.00012054,2]
[398586125,1765857074159,-1799.91,0.00012054,2]
[398586126,1765857074168,-500.0,0.00012054,2]
[398586127,1765857074177,-1395.69,0.00012054,2]
[398586128,1765857074186,-500.0,0.00012054,2]
[398586129,1765857074195,-500.0,0.00012054,2]
[398586130,1765857074203,-500.0,0.00012054,2]
[398586131,1765857074214,-500.0,0.00012054,2]
[398586132,1765857074222,-2489.6,0.00012054,2]
[398586133,1765857074231,-500.0,0.00012054,2]
[398586134,1765857074240,-500.0,0.00012054,2]
[398586135,1765857074249,-531.83502742,0.00012054,2]
[398586136,1765857074257,-500.0,0.00012054,2]
[398586137,1765857074266,-500.0,0.00012054,2]
[398586138,1765857074275,-500.0,0.00012054,2]
[398586139,1765857074284,-1851.38,0.00012054,2]
[398586140,1765857074292,-3564.58,0.00012054,2]
[398586141,1765857074301,-1892.77,0.00012054,2]
[398586142,1765857074310,-500.0,0.00012054,2]
[398586143,1765857074319,-500.0,0.00012054,2]
[398586144,1765857074327,-625.7,0.00012054,2]
[398586145,1765857074336,-554.05,0.00012054,2]
[398586146,1765857074345,-614.05,0.00012054,2]
[398586147,1765857074355,-500.0,0.00012054,2]
[398586148,1765857074363,-1268.17,0.00012054,2]
[398586149,1765857074372,-500.0,0.00012054,2]
[398586150,1765857074382,-500.0,0.00012054,2]
[398586151,1765857074391,-2548.3,0.00012054,2]
[398586152,1765857074400,-964.39,0.00012054,2]
[398586153,1765857074408,-500.0,0.00012054,2]
[398586154,1765857074417,-500.0,0.00012054,2]
[398586155,1765857074426,-500.0,0.00012054,2]
[398586156,1765857074435,-2757.29,0.00012054,2]
[398586157,1765857074444,-921.12,0.00012054,2]
[398586158,1765857074453,-1379.13,0.00012054,2]
[398586159,1765857074461,-500.0,0.00012054,2]
[398586160,1765857074470,-1281.57,0.00012054,2]
[398586161,1765857074479,-500.0,0.00012054,2]
[398586162,1765857074488,-500.0,0.00012054,2]
[398586163,1765857074497,-500.0,0.00012054,2]
[398586164,1765857074506,-591.0,0.00012054,2]
[398586165,1765857074515,-500.0,0.00012054,2]
[398586166,1765857074523,-339.43345906,0.00012054,2]
[398586167,1765857074532,-500.0,0.00012054,2]
[398586168,1765857074541,-621.24,0.00012054,2]
[398586169,1765857074550,-500.0,0.00012054,2]
[398586170,1765857074558,-500.0,0.00012054,2]
[398586171,1765857074567,-858.92,0.00012054,2]
[398586172,1765857074575,-604.25,0.00012054,2]
[398586173,1765857074584,-601.93,0.00012054,2]
[398586174,1765857074593,-1724.77,0.00012054,2]
[398586175,1765857074601,-500.0,0.00012054,2]
[398586176,1765857074610,-1883.58,0.00012054,2]
[398586177,1765857074619,-500.0,0.00012054,2]
[398586178,1765857074628,-500.0,0.00012054,2]
[398586179,1765857074636,-897.25,0.00012054,2]
[398586180,1765857074645,-1210.79,0.00012054,2]
[398586181,1765857074653,-1351.77,0.00012054,2]
[398586182,1765857074662,-500.0,0.00012054,2]
[398586183,1765857074670,-773.94,0.00012054,2]
[398586184,1765857074679,-500.0,0.00012054,2]
[398586185,1765857074688,-724.47,0.00012054,2]
[398586186,1765857074697,-500.0,0.00012054,2]
[398586187,1765857074706,-1559.66,0.00012054,2]
[398586188,1765857074714,-500.0,0.00012054,2]
[398586189,1765857074723,-658.19,0.00012054,2]
[398586190,1765857074731,-500.0,0.00012054,2]
[398586191,1765857074740,-901.9,0.00012054,2]
[398586192,1765857074748,-500.0,0.00012054,2]
[398586193,1765857074757,-1664.36,0.00012054,2]
[398586194,1765857074767,-500.0,0.00012054,2]
[398586195,1765857074776,-500.0,0.00012054,2]
[398586196,1765857074785,-540.02,0.00012054,2]
[398586197,1765857074793,-1404.56,0.00012054,2]
[398586198,1765857074932,-1280.6,0.00012054,2]
[398586199,1765857074953,-500.0,0.00012054,2]
[398586200,1765857074962,-500.0,0.00012054,2]
[398586201,1765857074972,-577.11,0.00012054,2]
[398586202,1765857074981,-517.8,0.00012054,2]
[398586203,1765857074990,-500.0,0.00012054,2]
[398586204,1765857074999,-851.34,0.00012054,2]
[398586205,1765857075008,-500.0,0.00012054,2]
[398586206,1765857075018,-1225.41,0.00012054,2]
[398586207,1765857075027,-500.0,0.00012054,2]
[398586208,1765857075036,-500.0,0.00012054,2]
[398586209,1765857075045,-500.0,0.00012054,2]
[398586210,1765857075054,-6779.98,0.00012054,2]
[398586211,1765857075064,-500.0,0.00012054,2]
[398586212,1765857075073,-500.0,0.00012054,2]
[398586213,1765857075082,-500.0,0.00012054,2]
[398586214,1765857075091,-500.0,0.00012054,2]
[398586215,1765857075100,-500.0,0.00012054,2]
[398586216,1765857075110,-500.0,0.00012054,2]
[398586217,1765857075119,-879.62,0.00012054,2]
[398586218,1765857075133,-500.0,0.00012054,2]
[398586219,1765857075142,-849.34,0.00012054,2]
[398586220,1765857075151,-500.0,0.00012054,2]
[398586221,1765857075160,-4220.16,0.00012054,2]
[398586222,1765857075170,-595.95296348,0.00012054,2]
[398586223,1765857075179,-500.0,0.00012054,2]
[398586224,1765857075188,-500.0,0.00012054,2]
[398586225,1765857075198,-500.0,0.00012054,2]
[398586226,1765857075207,-500.0,0.00012054,2]
[398586227,1765857075217,-2541.48,0.00012054,2]
[398586228,1765857075226,-500.0,0.00012054,2]
[398586229,1765857075235,-618.0,0.00012054,2]
[398586230,1765857075246,-1330.94,0.00012054,2]
[398586231,1765857075255,-502.75,0.00012054,2]
[398586232,1765857075265,-500.0,0.00012054,2]
[398586233,1765857075275,-1721.89,0.00012054,2]
[398586234,1765857075285,-1471.73,0.00012054,2]
[398586235,1765857075294,-1794.66,0.00012054,2]
[398586236,1765857075303,-500.0,0.00012054,2]
[398586237,1765857075312,-500.0,0.00012054,2]
[398586238,1765857075321,-500.0,0.00012054,2]
[398586239,1765857075331,-1436.2,0.00012054,2]
[398586240,1765857075340,-919.0,0.00012054,2]
[398586241,1765857075349,-1483.78,0.00012054,2]
[398586242,1765857075358,-500.0,0.00012054,2]
[398586243,1765857075368,-9283.55,0.00012054,2]
[398586244,1765857075377,-1109.0,0.00012054,2]
[398586245,1765857075386,-930.78,0.00012054,2]
[398586246,1765857075395,-500.0,0.00012054,2]
[398586247,1765857075404,-700.85,0.00012054,2]
[398586248,1765857075414,-2453.55,0.00012054,2]
[398586249,1765857075425,-707.6,0.00012054,2]
[398586250,1765857075434,-536.25,0.00012054,2]
[398586251,1765857075443,-500.0,0.00012054,2]
[398586252,1765857075452,-500.0,0.00012054,2]
[398586253,1765857075462,-990.55,0.00012054,2]
[398586254,1765857075471,-500.0,0.00012054,2]
[398586255,1765857075481,-2349.49,0.00012054,2]
[398586256,1765857075490,-500.0,0.00012054,2]
[398586257,1765857075499,-2196.03,0.00012054,2]
[398586258,1765857075508,-500.0,0.00012054,2]
[398586259,1765857075519,-1420.86,0.00012054,2]
[398586260,1765857075528,-1354.29,0.00012054,2]
[398586261,1765857075538,-1566.76,0.00012054,2]
[398586262,1765857075547,-500.0,0.00012054,2]
[398586263,1765857075556,-1789.22,0.00012054,2]
[398586264,1765857075565,-500.0,0.00012054,2]
[398586265,1765857075574,-975.67,0.00012054,2]
[398586266,1765857075583,-997.09,0.00012054,2]
[398586267,1765857075592,-1344.17,0.00012054,2]
[398586268,1765857075601,-600.75,0.00012054,2]
[398586269,1765857075609,-500.0,0.00012054,2]
[398586270,1765857075619,-500.0,0.00012054,2]
[398586271,1765857075630,-4842.15,0.00012054,2]
[398586272,1765857075639,-500.0,0.00012054,2]
[398586273,1765857075650,-938.39,0.00012054,2]
[398586274,1765857075659,-513.63,0.00012054,2]
[398586275,1765857075668,-1372.69,0.00012054,2]
[398586276,1765857075677,-500.0,0.00012054,2]
[398586277,1765857075686,-500.0,0.00012054,2]
[398586278,1765857075698,-1192.19,0.00012054,2]